Workbook

Sheet List1

Sheet Report
A1: Vyhodnocení návrhu investice
A4: Základní údaje:
G5: identifikační číslo studie: | J5: 1
A6: název: | B6: Byt 3+kk v ulici Berkova
A7: lokalita: | B7: Brno - Královo pole, 612 00
A9: adresa: | B9: Berkova
B10: Brno - Královo pole, 612 00 | H10: datum vytvoření reportu: | I10: =TODAY() -> 2019-01-06
A12: objednatel studie: | B12: Jan Kovalčuk, Irkutská 315/2, Brno - Starý Lískovec, 625 00 | H12: typ investora: | I12: Fyzická osoba
A15: Technické charakteristiky nemovitosti:
B17: druh budovy: | C17: Novostavba/developerský projekt | E17: užitná plocha: | F17: 87
B18: dispozice: | C18: 3+kk | E18: pronajímatelná plocha: | F18: 87
A21: Investiční náklady: | E21: Způsob financování:
B23: cena nemovitosti: | E23: hypotéka: | F23: ne | I23: další úvěr: | J23: ne
B24: provize RK: | E24: =IF(F23="NE",IF(J23="NE","Investice je plně hrazena z vlastních zdrojů",""),"") -> Investice je plně hrazena z vlastních zdrojů
B25: daň z nabytí nemovitosti: | E25: =IF(F23="NE",IF(J23="ANO","","Celkem hrazeno z vlastních zdrojů:"),"parametry hypotéky") -> Celkem hrazeno z vlastních zdrojů: | G25: =IF(J23="NE",IF(F23="ANO","",C34),"parametry úvěru") -> 0
B26: právní služby: | E26: výše hypotéky: | G26: výše úvěru:
B27: úschova:
B28: poplatky KN:
B29: další poplatky: | E29: doba splácení (roky): | I29: doba splácen (roky):
B30: Ocenění nemovitosti: | E30: úroková míra (p.a.): | I30: úroková míra (p.a.):
B31: poplatek za vyřízení úvěru: | E31: měsíční splátka: | F31: =G45 -> 0 | G31: měsíční splátka: | I31: =G46 -> 0
B32: rekonstrukce (stavební náklady):
B34: celkem investiční náklady: | C34: =SUM(C23:C32) -> 0 | E34: vynaložené vlastní zdroje: | H34: =IF(J23="ne",C34-E27,C34-G27-E27) -> 0
A37: Výpočet cashflow:
A39: příjmy: | E39: výdaje:
C40: měsíční | D40: roční | G40: měsíční | I40: roční
A41: přijaté nájemné - hrubé: | D41: =C41*12 -> 0 | E41: pojištění nemovitosti: | I41: =G41*12 -> 0
A42: ztráta vlivem neobsazenosti: | D42: =C42*12 -> 0 | E42: příspěvek na správu domu a pozemku: | I42: 0
A43: přijaté nájemné - po korekci: | D43: =C43*12 -> 0 | E43: daň z příjmu z pronájmu: | I43: 0
E44: daň z vlastnictví nemovitosti: | I44: 0
E45: splátka hypotéky: | I45: 0
E46: splátka úvěru: | I46: 0
B48: příjmy celkem: | C48: =C43 -> 0 | D48: =D43 -> 0 | F48: výdaje celkem: | G48: =SUM(G41:H46) -> 0 | I48: =SUM(I41:J46) -> 0
A50: výsledné cashflow:
A52: před splacením hypotéky a úvěru | D52: po splacení úvěru | G52: po splacení úvěru a hypotéky
A54: =C48-G48 -> 0 | D54: =C48-SUM(G41:H45) -> 0 | G54: =C48-SUM(G41:G44) -> 0
A57: Vyhodnocení investice:
A59: délka doby zkoumání investice (v letech):
B60: diskontní míra:
A62: Výsledné ukazatele výnosnosti:
A64: čistá současná hodnota NPV | C64: vnitřní výnosové procento IRR | E64: doba návratnosti PP (v letech) | G64: diskontovaná doba návratnosti DPP (v letech)

Sheet 255.35.85 (hidden)
A1: NameI | B1: Byt v Holicích
A2: IDI | B2: 255.35.85
A4: StreetI | B4: Holubova 735
A5: CityI | B5: Jekatěrinburg, 110 09
A6: TypeBI | B6: Zděná z cihel
A7: SizeBI | B7: 3+1
A8: AreaUI | B8: 89
A9: AreaRI | B9: 78
A11: NameO | B11: IP Invest, a.s.
A12: PersonCB | B12: Právnická osoba
A13: IDO | B13: 963368596
A14: StreetO | B14: Nigraskutská, 1125
A15: CityO | B15: Jakutsk, 125 65
A17: LngtI | B17: 252
A18: DskntI | B18: 0.07
A20: PriceP | B20: 3500000
A21: ProviP | B21: 500000
A22: ProviP2
A23: TaxP | B23: 140000
A24: LawP | B24: 3000
A25: DeposP | B25: 4000
A26: KNFP | B26: 500
A27: OthrFP | B27: 1000
A28: EstimP | B28: 4000
A29: RemontP | B29: 250000
A30: IntExpAP | B30: =SUM(B20:B28) -> 4152500
A32: InsurP | B32: 1500
A33: InsurP_Y | B33: =B32*12 -> 18000
A34: FondP | B34: 500
A35: FondP_Y | B35: =B34*12 -> 6000
A36: TaxIP | B36: =IF(B12=1,B55*0.15,B55*0.19) -> 3790.5
A37: TaxIP_Y | B37: =B36*12 -> 45486
A38: TaxOP | B38: =B41*B42*B8 -> 89
A39: TaxOP_Y | B39: =B38*12 -> 1068
A41: KPtype | B41: 1
A42: KPLoc | B42: 1
G47: PriceP_r.Caption | H47: = | I47: Worksheets(ID).Range("B20") | M47: =CONCATENATE(G47,H47,"format","(",G47,",","'currency'",")") -> PriceP_r.Caption=format(PriceP_r.Caption,'currency') | T47: PriceP_r.Caption=format(PriceP_r.Caption,"currency")
A48: OutsP | B48: =IF(B64=1,B32+B34+B36+B38+B71+B74,IF(B59=1,B32+B34+B36+B38+B71,B32+B34+B36+B38)) -> 11020.5 | G48: ProviP_r.Caption | H48: = | I48: Worksheets(ID).Range("B21") | M48: =CONCATENATE(G48,H48,"format","(",G48,",","'currency'",")") -> ProviP_r.Caption=format(ProviP_r.Caption,'currency') | T48: ProviP_r.Caption=format(ProviP_r.Caption,"currency")
A49: OutsP_Y | B49: =B48*12 -> 132246 | G49: TaxP_r.Caption | H49: = | I49: Worksheets(ID).Range("B23") | M49: TaxP_r.Caption=format(TaxP_r.Caption,'currency') | T49: TaxP_r.Caption=format(TaxP_r.Caption,"currency")
A50: InsGross | B50: 21000 | G50: LawP_r.Caption | H50: = | I50: Worksheets(ID).Range("B24") | M50: LawP_r.Caption=format(LawP_r.Caption,'currency') | T50: LawP_r.Caption=format(LawP_r.Caption,"currency")
A51: InsGross_Y | B51: =B50*12 -> 252000 | G51: DeposP_r.Caption | H51: = | I51: Worksheets(ID).Range("B25") | M51: DeposP_r.Caption=format(DeposP_r.Caption,'currency') | T51: DeposP_r.Caption=format(DeposP_r.Caption,"currency")
A52: LossBV | B52: =B50*B54 -> 1050 | G52: KNFP_r.Caption | H52: = | I52: Worksheets(ID).Range("B26") | M52: KNFP_r.Caption=format(KNFP_r.Caption,'currency') | T52: KNFP_r.Caption=format(KNFP_r.Caption,"currency")
A53: LossBV_Y | B53: =B52*12 -> 12600 | G53: OthrFP_r.Caption | H53: = | I53: Worksheets(ID).Range("B27") | M53: OthrFP_r.Caption=format(OthrFP_r.Caption,'currency') | T53: OthrFP_r.Caption=format(OthrFP_r.Caption,"currency")
A54: VacaP | B54: 0.05 | G54: EstimP_r.Caption | H54: = | I54: Worksheets(ID).Range("B28") | M54: EstimP_r.Caption=format(EstimP_r.Caption,'currency') | T54: EstimP_r.Caption=format(EstimP_r.Caption,"currency")
A55: InsNet | B55: =B50-B52 -> 19950 | G55: RemontP_r.Caption | H55: = | I55: Worksheets(ID).Range("B29") | M55: RemontP_r.Caption=format(RemontP_r.Caption,'currency') | T55: RemontP_r.Caption=format(RemontP_r.Caption,"currency")
A56: InsNet_Y | B56: =B55*12 -> 239400 | G56: IntExpAP_r.Caption | H56: = | I56: Worksheets(ID).Range("B30") | M56: IntExpAP_r.Caption=format(IntExpAP_r.Caption,'currency') | T56: IntExpAP_r.Caption=format(IntExpAP_r.Caption,"currency")
A58: FinComP | B58: 0 | G58: InsurP_r.Caption | H58: = | I58: Worksheets(ID).Range("B32") | M58: InsurP_r.Caption=format(InsurP_r.Caption,'currency') | T58: InsurP_r.Caption=format(InsurP_r.Caption,"currency")
A59: MrtgON | B59: 1 | G59: InsurP_Y_r.Caption | H59: = | I59: Worksheets(ID).Range("B33") | M59: InsurP_Y_r.Caption=format(InsurP_Y_r.Caption,'currency') | T59: InsurP_Y_r.Caption=format(InsurP_Y_r.Caption,"currency")
A60: MrtgFP | B60: 525000 | G60: FondP_r.Caption | H60: = | I60: Worksheets(ID).Range("B34") | M60: FondP_r.Caption=format(FondP_r.Caption,'currency') | T60: FondP_r.Caption=format(FondP_r.Caption,"currency")
A61: MrtgFP2 | B61: =B60/B20 -> 0.15 | G61: FondP_Y_r.Caption | H61: = | I61: Worksheets(ID).Range("B35") | M61: FondP_Y_r.Caption=format(FondP_Y_r.Caption,'currency') | T61: FondP_Y_r.Caption=format(FondP_Y_r.Caption,"currency")
A62: MrtgLP | B62: 10 | G62: TaxIP_r.Caption | H62: = | I62: Worksheets(ID).Range("B36") | M62: TaxIP_r.Caption=format(TaxIP_r.Caption,'currency') | T62: TaxIP_r.Caption=format(TaxIP_r.Caption,"currency")
A63: MrtgIP | B63: 0.0329 | G63: TaxIP_Y_r.Caption | H63: = | I63: Worksheets(ID).Range("B37") | M63: TaxIP_Y_r.Caption=format(TaxIP_Y_r.Caption,'currency') | T63: TaxIP_Y_r.Caption=format(TaxIP_Y_r.Caption,"currency")
A64: LoanON | B64: 0 | G64: TaxOP_r.Caption | H64: = | I64: Worksheets(ID).Range("B38") | M64: TaxOP_r.Caption=format(TaxOP_r.Caption,'currency') | T64: TaxOP_r.Caption=format(TaxOP_r.Caption,"currency")
A65: LoanFP | B65: 1000000 | G65: TaxOP_Y_r.Caption | H65: = | I65: Worksheets(ID).Range("B39") | M65: TaxOP_Y_r.Caption=format(TaxOP_Y_r.Caption,'currency') | T65: TaxOP_Y_r.Caption=format(TaxOP_Y_r.Caption,"currency")
A66: LoanLP | B66: 15 | G66: MrtgP_r.Caption | H66: = | I66: Worksheets(ID).Range("B71") | M66: MrtgP_r.Caption=format(MrtgP_r.Caption,'currency') | T66: MrtgP_r.Caption=format(MrtgP_r.Caption,"currency")
A67: LoanIP | B67: 0.0459 | G67: MrtgP_Y_r.Caption | H67: = | I67: Worksheets(ID).Range("B72") | M67: MrtgP_Y_r.Caption=format(MrtgP_Y_r.Caption,'currency') | T67: MrtgP_Y_r.Caption=format(MrtgP_Y_r.Caption,"currency")
A68: OwnCapP | B68: =B30-B60 -> 3627500 | G68: LoanP_r.Caption | H68: = | I68: Worksheets(ID).Range("B74") | M68: LoanP_r.Caption=format(LoanP_r.Caption,'currency') | T68: LoanP_r.Caption=format(LoanP_r.Caption,"currency")
A69: LoanFP2 | B69: =B65/(B30-B60) -> 0.2756719504 | G69: LoanP_Y_r.Caption | H69: = | I69: Worksheets(ID).Range("B75") | M69: LoanP_Y_r.Caption=format(LoanP_Y_r.Caption,'currency') | T69: LoanP_Y_r.Caption=format(LoanP_Y_r.Caption,"currency")
A71: AnuMrtgFP | B71: =ROUNDUP(((B63/12)*(POWER(1+(B63/12),(B62*12))))/(POWER(1+(B63/12),(B62*12))-1)*B60,0) -> 5141 | G71: InsGross_r.Caption | H71: = | I71: Worksheets(ID).Range("B50") | M71: InsGross_r.Caption=format(InsGross_r.Caption,'currency') | T71: InsGross_r.Caption=format(InsGross_r.Caption,"currency")
A72: AnuMrtgFP_Y | B72: =B71*12 -> 61692 | G72: InsGross_Y_r.Caption | H72: = | I72: Worksheets(ID).Range("B51") | M72: InsGross_Y_r.Caption=format(InsGross_Y_r.Caption,'currency') | T72: InsGross_Y_r.Caption=format(InsGross_Y_r.Caption,"currency")
G73: LossBV_r.Caption | H73: = | I73: Worksheets(ID).Range("B52") | M73: LossBV_r.Caption=format(LossBV_r.Caption,'currency') | T73: LossBV_r.Caption=format(LossBV_r.Caption,"currency")
A74: AnuLoanFP | B74: =ROUNDUP(((B67/12)*(POWER(1+(B67/12),(B66*12))))/(POWER(1+(B67/12),(B66*12))-1)*B65,0) -> 7697 | G74: LossBV_Y_r.Caption | H74: = | I74: Worksheets(ID).Range("B53") | M74: LossBV_Y_r.Caption=format(LossBV_Y_r.Caption,'currency') | T74: LossBV_Y_r.Caption=format(LossBV_Y_r.Caption,"currency")
A75: AnuLoanFP_Y | B75: =B74*12 -> 92364 | G75: InsNet_r.Caption | H75: = | I75: Worksheets(ID).Range("B55") | M75: InsNet_r.Caption=format(InsNet_r.Caption,'currency') | T75: InsNet_r.Caption=format(InsNet_r.Caption,"currency")
G76: InsNet_Y_r.Caption | H76: = | I76: Worksheets(ID).Range("B56") | M76: InsNet_Y_r.Caption=format(InsNet_Y_r.Caption,'currency') | T76: InsNet_Y_r.Caption=format(InsNet_Y_r.Caption,"currency")
G78: MrtgFP_r.Caption | H78: = | I78: Worksheets(ID).Range("B60") | M78: MrtgFP_r.Caption=format(MrtgFP_r.Caption,'currency') | T78: MrtgFP_r.Caption=format(MrtgFP_r.Caption,"currency")
G79: MrtgLP_r.Caption | H79: = | I79: Worksheets(ID).Range("B62")
G80: MrtgIP_r.Caption | H80: = | I80: Worksheets(ID).Range("B63") | J80: * | K80: 100
G82: LoanFP_r.Caption | H82: = | I82: Worksheets(ID).Range("B65") | M82: LoanFP_r.Caption=format(LoanFP_r.Caption,'currency') | T82: LoanFP_r.Caption=format(LoanFP_r.Caption,"currency")
G83: LoanLP_r.Caption | H83: = | I83: Worksheets(ID).Range("B66")
G84: LoanIP_r.Caption | H84: = | I84: Worksheets(ID).Range("B67") | J84: * | K84: 100
G86: OwnCapP_r.Caption | H86: = | I86: Worksheets(ID).Range("B68") | M86: OwnCapP_r.Caption=format(OwnCapP_r.Caption,'currency') | T86: OwnCapP_r.Caption=format(OwnCapP_r.Caption,"currency")

Sheet Designations (hidden)
A1: Tier 1 | B1: Tier 2 | C1: item | D1: basic designation (value) | E1: item type | F1: label | G1: format | H1: units | I1: method | J1: backendsheet1 | K1: formula
A2: MainMenu
C3: Seznam investičních studií | D3: ListMainMenu | E3: commandbutton | F3: - | G3: - | H3: - | I3: click | J3: no | K3: -
C4: Založit novou investiční studii | D4: CreateMainMenu | E4: commandbutton | F4: - | G4: - | H4: - | I4: click | J4: no | K4: -
C5: Ukončit program | D5: CancelMainMenu | E5: commandbutton | F5: - | G5: - | H5: - | I5: click | J5: no | K5: -
A6: BasicInfo
C7: Název investice | D7: NameI | E7: textbox | F7: =CONCATENATE(D7,"_t") -> NameI_t | G7: text | H7: - | I7: user input | J7: 1 | K7: -
C8: Identifikační číslo investice | D8: IDI | E8: textbox | F8: =CONCATENATE(D8,"_t") -> IDI_t | G8: number | H8: - | I8: user input | J8: 2 | K8: -
C9: Zrušit | D9: CancelBasicInfo | E9: commandbutton | F9: - | G9: - | H9: - | I9: click | J9: no | K9: -
C10: Založit novou studii | D10: CreateBasicInfo | E10: commandbutton | F10: - | G10: - | H10: - | I10: click | J10: no | K10: -
A11: BasicInfo2
C12: Adresa investice | D12: StreetI | E12: textbox | F12: StreetI_t | G12: text | H12: - | I12: user input | J12: 4 | K12: -
C13: město investice | D13: CityI | E13: textbox | F13: CityI_t | G13: text | H13: - | I13: user input | J13: 5 | K13: -
C14: druh budovy | D14: TypeBI | E14: textbox | F14: TypeBI_t | G14: text | H14: - | I14: user input | J14: 6 | K14: -
C15: velikost (b.j.) | D15: SizeBI | E15: textbox | F15: SizeBI_t | G15: text | H15: - | I15: user input | J15: 7 | K15: -
C16: užitna plocha | D16: AreaUI | E16: textbox | F16: AreaUI_t | G16: number | H16: sqrm | I16: user input | J16: 8 | K16: -
C17: pronajímatelná plocha | D17: AreaRI | E17: textbox | F17: AreaRI_t | G17: number | H17: sqrm | I17: user input | J17: 9 | K17: -
C18: Název (jméno) objednatele | D18: NameO | E18: textbox | F18: =CONCATENATE(D18,"_t") -> NameO_t | G18: text | H18: - | I18: user input | J18: 11 | K18: -
C19: Objednatel (FO/PO) | D19: PersonCB | E19: combobox | F19: PersonCB_t | G19: text | H19: - | I19: combobox | J19: 12 | K19: -
A20: PriceP | C20: IČO objednatele | D20: IDO | E20: textbox | F20: IDO_t | G20: number | H20: - | I20: user input | J20: 13 | K20: -
A21: ProviP | C21: Adresa objednatele | D21: StreetO | E21: textbox | F21: StreetO_t | G21: text | H21: - | I21: user input | J21: 14 | K21: -
A22: ProviP2 | C22: město objednatele | D22: CityO | E22: textbox | F22: CityO_t | G22: text | H22: - | I22: user input | J22: 15 | K22: -
A23: TaxP
A24: LawP | C24: délka posuzovaného období v | D24: UnitsLI | E24: combobox | F24: =CONCATENATE(D24,"_t") -> UnitsLI_t | G24: text | H24: - | I24: combobox | J24: no | K24: -
A25: DeposP | C25: délka doby zkoumání investice | D25: LngtI | E25: textbox | F25: =CONCATENATE(D25,"_t") -> LngtI_t | G25: number | H25: years | I25: user input | J25: 17 | K25: -
A26: KNFP | C26: roční diskontní míra | D26: DskntI | E26: textbox | F26: =CONCATENATE(D26,"_t") -> DskntI_t | G26: number | H26: percent | I26: user input | J26: 18 | K26: -
A27: OthrFP | C27: Další | D27: NextInvProp | E27: commandbutton | F27: - | G27: - | H27: - | I27: click | J27: no | K27: -
A28: EstimP | C28: Zpět | D28: BackInvProp | E28: commandbutton | F28: - | G28: - | H28: - | I28: click | J28: no | K28: -
A29: RemontP
A30: IntExpAP | B30: =SUM(B20:B29) -> 0 | C30: cena nemovitosti | D30: PriceP | E30: textbox | F30: =CONCATENATE(D30,"_t") -> PriceP_t | G30: number | H30: currency | I30: user input | J30: 20 | K30: -
C31: provize RK - % | D31: ProviP | E31: textbox | F31: =CONCATENATE(D31,"_t") -> ProviP_t | G31: number | H31: percent | I31: user input | J31: 21 | K31: -
A32: InsurP | C32: provize RK - Kč | D32: ProviP2 | E32: label | F32: - | G32: number | H32: currency | I32: computed | J32: 22 | K32: =PriceP*(ProviP/100)
A33: InsurP_Y | C33: Daň z nabytí nemovitosti | D33: TaxP | E33: label | F33: TaxP_t | G33: number | H33: currency | I33: computed | J33: 23 | K33: =PriceP*0.04
A34: FondP | C34: právní služby | D34: LawP | E34: textbox | F34: LawP_t | G34: number | H34: currency | I34: user input | J34: 24 | K34: -
A35: FondP_Y | C35: úschova | D35: DeposP | E35: textbox | F35: DeposP_t | G35: number | H35: currency | I35: user input | J35: 25 | K35: -
A36: TaxIP | C36: poplatky KN | D36: KNFP | E36: textbox | F36: KNFP_t | G36: number | H36: currency | I36: user input | J36: 26 | K36: -
A37: TaxIP_Y | C37: další poplatky | D37: OthrFP | E37: textbox | F37: OthrFP_t | G37: number | H37: currency | I37: user input | J37: 27 | K37: -
A38: TaxOP | C38: ocenění nemovitosti | D38: EstimP | E38: textbox | F38: EstimP_t | G38: number | H38: currency | I38: user input | J38: 28 | K38: -
A39: TaxOP_Y | C39: rekonstrukce před zahájením pronajímání | D39: RemontP | E39: textbox | F39: RemontP_t | G39: number | H39: currency | I39: user input | J39: 29 | K39: -
C40: investiční náklady celkem | D40: IntExpAP | E40: label | F40: IntExpAP_t | G40: number | H40: currency | I40: computed | J40: 30 | K40: =PriceP+PriceP*(ProviP/100)+PriceP*0.04+TaxP+LawP+DeposP+KNFP+OthrP+EstimP+RemontP
A41: KPtype
A42: KPLoc | C42: pojištění nemovitosti | D42: InsurP | E42: textbox | F42: =CONCATENATE(D42,"_t") -> InsurP_t | G42: number | H42: currency | I42: user input | J42: 32 | K42: -
C43: pojištění nemovitosti - roční | D43: InsurP_Y | E43: label | F43: - | G43: number | H43: currency | I43: computed | J43: 33 | K43: =InsurP*12
C44: zálohy na dl. A kv. Opravy | D44: FondP | E44: textbox | F44: =CONCATENATE(D44,"_t") -> FondP_t | G44: number | H44: currency | I44: user input | J44: 34 | K44: -
C45: zálohy na dl. A kv. Opravy - roční | D45: FondP_Y | E45: label | F45: - | G45: number | H45: currency | I45: computed | J45: 35 | K45: =FondP*12
C46: daň z příjmu | D46: TaxIP | E46: label | F46: =CONCATENATE(D46,"_t") -> TaxIP_t | G46: number | H46: currency | I46: computed | J46: 36 | K46: =InsNet*0.19 x InsNet*0.15
C47: daň z příjmu - roční | D47: TaxIP_Y | E47: label | F47: - | G47: number | H47: currency | I47: computed | J47: 37 | K47: =TaxIP*12
A48: OutsP | C48: daň z vlastnictví nemovitosti | D48: TaxOP | E48: label | F48: =CONCATENATE(D48,"_t") -> TaxOP_t | G48: number | H48: currency | I48: computed | J48: 38 | K48: =TaxOPK.KPtype*TaxOPK.KPloc*IntExp.PriceP
A49: OutsP_Y | C49: daň z vlastnictví nemovitosti - roční | D49: TaxOP_Y | E49: label | F49: - | G49: number | H49: currency | I49: computed | J49: 39 | K49: =TaxOP*12
A50: InsGross | B50: TaxOPK
A51: InsGross_Y | C51: Koeficient pro nemovitost | D51: KPtype | E51: textbox | F51: =CONCATENATE(D51,"_t") -> KPtype_t | G51: number | H51: decimal | I51: user input | J51: 41 | K51: -
A52: LossBV | C52: Koeficient pro lokalitu | D52: KPloc | E52: textbox | F52: =CONCATENATE(D52,"_t") -> KPloc_t | G52: number | H52: decimal | I52: user input | J52: 42 | K52: -
A53: LossBV_Y | C53: splátka hypotéky | D53: MrtgP | E53: label | F53: =CONCATENATE(D53,"_t") -> MrtgP_t | G53: number | H53: currency | I53: computed | J53: 44
A54: VacaP | C54: splátka hypotéky - roční | D54: MrtgP_Y | E54: label | F54: - | G54: number | H54: currency | I54: computed | J54: 45 | K54: =MrtgP*12
A55: InsNet | C55: splátka dalšího úvěru | D55: LoanP | E55: label | F55: =CONCATENATE(D55,"_t") -> LoanP_t | G55: number | H55: currency | I55: computed | J55: 46
A56: InsNet_Y | C56: splátka dalšího úvěru - roční | D56: LoanP_Y | E56: label | F56: - | G56: number | H56: currency | I56: computed | J56: 47 | K56: =LoanP*12
C57: pravidelné náklady celkem | D57: OutsP | E57: label | F57: =CONCATENATE(D57,"_t") -> OutsP_t | G57: number | H57: currency | I57: computed | J57: 48
C58: pravidelné náklady celkem - roční | D58: OutsP_Y | E58: label | F58: - | G58: number | H58: currency | I58: computed | J58: 49 | K58: =OutsP*12
C59: přijaté nájemné - hrubé | D59: InsGross | E59: textbox | F59: =CONCATENATE(D59,"_t") -> InsGross_t | G59: number | H59: currency | I59: user input | J59: 50 | K59: -
C60: přijaté nájemné - hrubé - roční | D60: InsGross_Y | E60: label | F60: - | G60: number | H60: currency | I60: computed | J60: 51 | K60: =InsGross*12
C61: ztráta vlivem neobsazenosti | D61: LossBV | E61: label | F61: =CONCATENATE(D61,"_t") -> LossBV_t | G61: number | H61: currency | I61: computed | J61: 52
C62: ztráta vlivem neobsazenosti - roční | D62: LossBV_Y | E62: label | F62: - | G62: number | H62: currency | I62: computed | J62: 53 | K62: =LossBV*12
C63: procentní sazba neobsazenosti | D63: VacaP | E63: textbox | F63: =CONCATENATE(D63,"_t") -> VacaP_t | G63: number | H63: percent | I63: user input | J63: 54 | K63: -
C64: přijaté nájemné - po korekci | D64: InsNet | E64: label | F64: =CONCATENATE(D64,"_t") -> InsNet_t | G64: number | H64: currency | I64: computed | J64: 55 | K64: =InsGross-LossBV
C65: přijaté nájemné - po korekci - roční | D65: InsNet_Y | E65: label | F65: - | G65: number | H65: currency | I65: computed | J65: 56 | K65: =InsNet*12
A66: FinanceP
C67: zvolte způsob financování nemovitoti | D67: FinComP | E67: combobox | F67: =CONCATENATE(D67,"_t") -> FinComP_t | G67: text | H67: - | I67: user input | J67: 58 | K67: -
C68: Hypoteční úvěr | D68: MrtgFrame | E68: frame | F68: - | G68: - | H68: - | I68: - | J68: - | K68: -
C69: Výše hypotečního úvěru | D69: MrtgFP | E69: textbox | F69: =CONCATENATE(D69,"_t") -> MrtgFP_t | G69: number | H69: currency | I69: user input | J69: 60 | K69: -
C70: Výše hypotečního úvěru - % | D70: MrtgFP2 | E70: label | F70: - | G70: number | H70: currency | I70: computed | J70: 61 | K70: -
C71: Doba splácení hypotéky | D71: MrtgLP | E71: textbox | F71: =CONCATENATE(D71,"_t") -> MrtgLP_t | G71: number | H71: decimal | I71: user input | J71: 62 | K71: -
C72: Úroková míra hypotéky | D72: MrtgIP | E72: textbox | F72: =CONCATENATE(D72,"_t") -> MrtgIP_t | G72: number | H72: percent | I72: user input | J72: 63 | K72: -
C73: Další úvěr | D73: LoanFrame | E73: frame | F73: - | G73: - | H73: - | I73: - | J73: - | K73: -
C74: Výše úvěru | D74: LoanFP | E74: textbox | F74: =CONCATENATE(D74,"_t") -> LoanFP_t | G74: number | H74: currency | I74: user input | J74: 65 | K74: -
C75: Doba splácení úvěru | D75: LoanLP | E75: textbox | F75: =CONCATENATE(D75,"_t") -> LoanLP_t | G75: number | H75: decimal | I75: user input | J75: 66 | K75: -
C76: Úroková míra úvěru | D76: LoanIP | E76: textbox | F76: =CONCATENATE(D76,"_t") -> LoanIP_t | G76: number | H76: percent | I76: user input | J76: 67 | K76: -
C77: Vlastní kapitál | D77: OwnCapP | E77: label | F77: =CONCATENATE(D77,"_t") -> OwnCapP_t | G77: number | H77: currency | I77: computed | J77: 68 | K77: -
